bitfinex/quotes_SOLUSD_20240716
["timestamp","ask_amount","ask_price","bid_price","bid_amount"]
[1721122522666,6.64839596,155.62,155.6,6.4266]
[1721122523398,6.64839596,155.62,155.6,7.71183456]
[1721122523603,6.64839596,155.62,155.6,6.4266]
[1721122523897,6.64839596,155.62,155.59,22.4939]
[1721122524093,6.64839596,155.62,155.59,16.0668]
[1721122524299,6.64839596,155.62,155.59,22.4938]
[1721122524467,6.64839596,155.62,155.6,6.4265]
[1721122524883,6.64839596,155.62,155.59,16.0668]
[1721122525883,6.64839596,155.62,155.59,22.4938]
[1721122526077,6.64839596,155.62,155.6,6.4265]
[1721122526303,6.64839596,155.62,155.59,16.0668]
[1721122526304,6.64839596,155.62,155.61,6.4263]
[1721122526915,39.5349735,155.66,155.58,6.5075]
[1721122527117,38.25,155.69,155.64,6.425]
[1721122527412,6.64861709,155.66,155.64,6.425]
[1721122527592,1.2849735,155.68,155.64,6.425]
[1721122527794,1.2849735,155.67,155.64,6.425]
[1721122528001,1.2849735,155.67,155.62,22.4901]
[1721122528194,1.2849735,155.67,155.63,6.4253]
[1721122528903,6.64868648,155.68,155.62,16.0646]
[1721122529108,7.7075735,155.7,155.62,16.0646]
[1721122530509,1.2849735,155.7,155.66,6.4242]
[1721122531001,1.2849735,155.7,155.66,16.0597]
[1721122531188,1.2849735,155.72,155.66,16.0597]
[1721122531390,1.2849735,155.72,155.67,1.25162517]
[1721122532121,1.2849735,155.73,155.68,16.0576]
[1721122532308,1.2849735,155.73,155.69,7.67450056]
[1721122532619,1.2849735,155.73,155.68,22.4809]
[1721122533008,1.2849735,155.73,155.69,6.4228]
[1721122533309,1.2849735,155.73,155.68,22.4809]
[1721122533518,7.7064735,155.73,155.68,22.4809]
[1721122534494,6.5918,155.72,155.66,6.4238]
[1721122534695,6.5918,155.72,155.66,6.4242]
[1721122534696,1.2849735,155.71,155.66,6.4242]
[1721122534913,1.2849735,155.7,155.67,6.4237]
[1721122535120,6.5918,155.72,155.67,6.4237]
[1721122535121,1.2849735,155.71,155.67,6.4237]
[1721122535303,1.2849735,155.7,155.67,6.4237]
[1721122535815,7.7075735,155.7,155.65,22.2361]
[1721122536031,1.2849735,155.7,155.67,6.4237]
[1721122536229,38.25,155.71,155.68,6.4231]
[1721122536230,39.5349735,155.71,155.68,6.4231]
[1721122536394,1.2849735,155.73,155.69,6.423]
[1721122536596,1.2849735,155.73,155.72,6.4217]
[1721122536818,1.2849735,155.75,155.65,40.8832]
[1721122537006,1.32545087,155.77,155.73,16.0534]
[1721122537322,1.32545087,155.77,155.74,6.4208]
[1721122538025,0.04047737,155.77,155.74,6.4208]
[1721122538203,0.04047737,155.77,155.75,6.4205]
[1721122539431,0.04047737,155.77,155.76,22.4704]
[1721122540407,1.2849735,155.85,155.76,22.4704]
[1721122540408,1.2849735,155.85,155.83,6.4172]
[1721122540700,1.2849735,155.85,155.77,32.0985]
[1721122540701,1.2849735,155.85,155.82,6.4176]
[1721122540895,1.2849735,155.85,155.81,6.418]
[1721122541396,1.2849735,155.85,155.8,16.0461]
[1721122541614,7.94443135,155.86,155.8,16.0461]
[1721122541806,1.2849735,155.86,155.76,51.4687]
[1721122542001,1.2849735,155.88,155.85,6.4164]
[1721122542213,5.0431555,155.88,155.83,22.4598]
[1721122542397,5.0431555,155.88,155.84,6.4167]
[1721122543127,3.758182,155.88,155.85,6.4161]
[1721122543308,3.758182,155.88,155.84,6.4166]
[1721122543496,1.2849735,155.87,155.84,6.4166]
[1721122543692,5.0431555,155.88,155.83,22.4602]
[1721122543925,5.0431555,155.88,155.83,16.043]
[1721122544098,5.0431555,155.88,155.81,6.418]
[1721122544099,6.4156,155.87,155.81,6.418]
[1721122544304,1.2849735,155.86,155.82,6.4176]
[1721122544527,1.2849735,155.85,155.8,6.4184]
[1721122544731,1.2849735,155.85,155.81,6.418]
[1721122544900,7.7013735,155.85,155.79,22.4648]
[1721122545225,7.7013735,155.85,155.8,6.4184]
[1721122545226,1.2849735,155.85,155.8,6.4184]
[1721122545436,1.2849735,155.85,155.79,16.0463]
[1721122545639,11.2849735,155.85,155.75,16.0506]
[1721122545803,38.59,155.84,155.76,0.90687577]
[1721122546001,1.2849735,155.83,155.76,0.90687577]
[1721122546211,1.4549735,155.82,155.75,17.33439993]
[1721122546397,1.4549735,155.82,155.75,16.0506]
[1721122546607,7.8725735,155.82,155.75,17.11981679]
[1721122546932,1.2849735,155.83,155.79,6.4188]
[1721122547132,1.2849735,155.82,155.78,16.0477]
[1721122547340,1.2849735,155.82,155.76,6.4197]
[1721122547341,7.8726735,155.82,155.76,6.4197]
[1721122547639,6.4183,155.81,155.76,6.4197]
[1721122547861,6.4183,155.81,155.74,6.1528]
[1721122547862,1.2849735,155.8,155.74,6.1528]
[1721122548031,1.2849735,155.8,155.73,6.4209]
[1721122548032,7.7041735,155.79,155.73,6.4209]
[1721122548222,6.4193,155.78,155.71,16.0544]
[1721122548421,1.4549735,155.77,155.73,6.4213]
[1721122548619,1.2849735,155.77,155.74,6.4209]
[1721122548925,1.2849735,155.76,155.71,22.4763]
[1721122549549,6.5906,155.75,155.7,6.4225]
[1721122549747,1.2849735,155.74,155.7,6.4225]
[1721122550051,1.2849735,155.73,155.69,6.4228]
[1721122550252,1.4549735,155.73,155.69,6.4228]
[1721122550419,1.2849735,155.74,155.7,0.81511098]
[1721122550616,1.2849735,155.73,155.69,6.4226]
[1721122550970,38.59,155.75,155.69,6.4229]
[1721122551124,38.59,155.75,155.68,16.0584]
[1721122551441,38.59,155.75,155.69,1.28251056]
[1721122551647,38.59,155.75,155.71,6.4218]
[1721122551946,1.2849735,155.74,155.71,6.4218]
[1721122552116,1.2849735,155.74,155.7,6.4225]
[1721122552318,1.2849735,155.74,155.71,6.422]
[1721122552522,17.7051735,155.76,155.71,6.422]
[1721122552723,17.7051735,155.76,155.68,22.4814]
[1721122552724,16.4213,155.74,155.68,22.4814]
[1721122552948,1.6249735,155.73,155.68,16.0584]
[1721122553128,8.0462735,155.73,155.68,16.0584]
[1721122553327,1.2849735,155.73,155.68,16.0584]
[1721122553564,1.2849735,155.73,155.69,6.4229]
[1721122553736,1.2849735,155.73,155.68,16.0584]
[1721122554042,1.2849735,155.73,155.66,6.4834]
[1721122554233,10.34,155.72,155.64,16.0617]
[1721122554438,1.2849735,155.71,155.64,16.0617]
[1721122554646,1.2849735,155.7,155.67,6.4237]
[1721122554833,0.34,155.72,155.68,6.4233]
[1721122555030,1.2849735,155.71,155.69,6.4228]
[1721122555223,1.2849735,155.73,155.7,6.4225]
[1721122555530,1.2849735,155.73,155.68,6.423]
[1721122556622,0.34,155.72,155.67,22.4828]
[1721122556820,16.4301,155.71,155.52,6.4006]
[1721122557021,16.4301,155.71,155.6,6.4266]
[1721122557022,6.4247,155.65,155.6,6.4266]
[1721122557229,6.4247,155.65,155.52,6.4006]
[1721122557230,6.4262,155.62,155.52,6.4006]
[1721122557456,0.17,155.63,155.58,6.4274]
[1721122557823,0.17,155.63,155.59,6.427]
[1721122557824,1.2849735,155.63,155.59,6.427]
[1721122558246,1.2849735,155.63,155.58,16.0688]
[1721122558247,10.0,155.62,155.56,6.4283]
[1721122558467,1.6249735,155.61,155.56,6.4283]
[1721122558654,1.2849735,155.6,155.56,6.4283]
[1721122559153,7.7117735,155.6,155.55,6.4286]
[1721122559649,16.4271,155.59,155.53,22.5031]
[1721122559849,1.2849735,155.58,155.53,16.0736]
[1721122560026,6.4273,155.59,155.53,22.5032]
[1721122560350,7.8825735,155.58,155.53,16.0736]
[1721122560537,8.0525735,155.58,155.53,22.5031]
[1721122560733,1.2849735,155.58,155.56,16.0709]
[1721122561052,1.2849735,155.6,155.56,16.0709]
[1721122561949,6.4267,155.6,155.55,6.4284]
[1721122562148,1.4549735,155.61,155.55,16.0715]
[1721122562149,1.2849735,155.59,155.55,16.0715]
[1721122562356,1.4549735,155.61,155.55,16.0715]
[1721122562766,1.2849735,155.62,155.58,16.0684]
[1721122562975,10.0,155.66,155.58,16.0684]
[1721122562976,1.2849735,155.64,155.58,16.0684]
[1721122563263,6.4263,155.61,155.55,6.4284]
[1721122563466,7.7118735,155.6,155.55,6.4284]
[1721122563767,6.4271,155.59,155.54,22.5012]
[1721122563972,1.2849735,155.58,155.54,22.5012]
[1721122564279,1.2849735,155.57,155.52,6.4296]
[1721122564446,1.2849735,155.57,155.54,6.4291]
[1721122564643,7.8824735,155.59,155.52,6.4296]
[1721122564858,7.8824735,155.59,155.51,16.0761]
[1721122564859,6.5976,155.58,155.53,6.4294]
[1721122565069,1.2849735,155.57,155.53,6.4294]
[1721122565251,1.2849735,155.57,155.51,16.0761]
[1721122565457,1.2849735,155.57,155.54,6.4291]
[1721122565844,1.2849735,155.57,155.52,6.4296]
[1721122566043,7.7129735,155.57,155.52,6.4296]
[1721122566451,1.2849735,155.57,155.53,6.4295]
[1721122566764,1.2849735,155.57,155.54,16.0727]
[1721122566941,1.2849735,155.6,155.54,16.0727]
[1721122567157,10.0,155.59,155.55,6.4283]
[1721122567363,1.2849735,155.62,155.56,6.4283]
[1721122567559,6.4265,155.61,155.56,6.4283]
[1721122567741,1.2849735,155.6,155.57,4.66915978]
[1721122567942,1.2849735,155.62,155.59,6.427]
[1721122568486,1.2849735,155.62,155.58,6.4275]
[1721122568649,1.2849735,155.62,155.57,11.09705978]
[1721122568847,1.2849735,155.62,155.57,4.66915978]
[1721122569053,1.2849735,155.63,155.6,6.4265]
[1721122569569,1.2849735,155.64,155.6,6.4265]
[1721122569797,1.2849735,155.64,155.6,7.70976413]
[1721122569982,1.2849735,155.64,155.61,6.4261]
[1721122570363,1.2849735,155.64,155.59,22.4942]
[1721122570562,7.7100735,155.64,155.59,22.4942]
[1721122570788,1.2849735,155.64,155.6,6.4266]
[1721122571491,1.2849735,155.64,155.61,6.4263]
[1721122571786,1.2849735,155.64,155.59,22.4942]
[1721122572279,11.2849735,155.64,155.57,11.05555978]
[1721122572487,0.34,155.63,155.57,4.66915978]
[1721122572694,11.2849735,155.62,155.57,4.66915978]
[1721122572885,6.4275,155.59,155.57,4.66915978]
[1721122573067,7.7124735,155.58,155.57,4.66915978]
[1721122573694,17.7124735,155.58,155.57,4.66915978]
[1721122573875,60.9024735,155.58,155.57,4.66915978]
[1721122576685,60.7324735,155.58,155.57,4.66915978]
[1721122576872,59.4475,155.58,155.57,4.66915978]
[1721122577082,49.4475,155.58,155.57,4.66915978]
[1721122577279,60.7324735,155.58,155.57,4.66915978]
[1721122578200,50.7324735,155.58,155.57,4.66915978]
[1721122578491,59.6175,155.58,155.57,4.66915978]
[1721122579471,43.19,155.58,155.57,4.66915978]
[1721122579663,1.2849735,155.59,155.57,4.66915978]
[1721122579871,7.7120735,155.59,155.57,4.66915978]
[1721122580082,1.2849735,155.59,155.57,4.66915978]
[1721122580371,1.2849735,155.6,155.57,4.66915978]
[1721122581090,12.0702348,155.64,155.57,22.02405715]
[1721122581091,6.4256,155.63,155.57,22.02405715]
[1721122581396,1.2849735,155.62,155.57,20.73865978]
[1721122581781,7.7109735,155.62,155.57,20.73865978]
[1721122581988,1.2849735,155.62,155.58,6.4275]
[1721122582504,1.2849735,155.63,155.59,6.4271]
[1721122582988,7.7104735,155.63,155.58,6.4275]
[1721122583198,6.4263,155.61,155.57,20.73865978]
[1721122583376,7.7116735,155.6,155.57,4.66915978]
[1721122583569,6.4259,155.62,155.57,4.66915978]
[1721122583773,1.2849735,155.61,155.57,4.66915978]
[1721122583999,1.2849735,155.63,155.57,4.66915978]
[1721122584375,6.4263,155.61,155.57,4.66915978]
[1721122584577,0.17,155.62,155.57,11.09695978]
[1721122584578,1.4549735,155.62,155.57,11.09695978]
[1721122584771,1.2849735,155.62,155.57,4.66915978]
[1721122584974,1.2849735,155.63,155.59,6.4271]
[1721122585783,1.2849735,155.63,155.58,22.4954]
[1721122585975,6.4262,155.62,155.57,4.66915978]
[1721122586905,6.4262,155.62,155.57,11.09695978]
[1721122587402,1.2849735,155.63,155.57,20.73835978]
[1721122587596,3.3552083,155.63,155.57,20.73835978]
[1721122587798,2.0702348,155.63,155.59,6.4271]
[1721122587996,1.2849735,155.62,155.58,6.4275]
[1721122588210,11.2849735,155.62,155.57,4.66915978]
[1721122588519,6.4275,155.58,155.57,4.66915978]
[1721122588685,1.2849735,155.6,155.57,4.66915978]
[1721122588995,6.4259,155.62,155.57,11.09665978]
[1721122589204,1.2849735,155.62,155.57,4.66915978]
[1721122589698,7.7108735,155.62,155.57,4.66915978]
[1721122589901,7.7108735,155.62,155.57,11.09695978]
[1721122591308,7.7108735,155.62,155.58,1.28546154]
[1721122591514,3.3552083,155.63,155.58,7.71276154]
[1721122591800,9.7808083,155.63,155.58,6.4273]
[1721122592312,3.3552083,155.63,155.59,16.0676]
[1721122592610,8.4957348,155.63,155.59,16.0676]
[1721122592811,8.4957348,155.63,155.58,6.4275]
[1721122594206,2.0702348,155.63,155.59,16.0678]
[1721122595317,2.0702348,155.63,155.57,11.26305978]
[1721122595318,6.4259,155.62,155.57,11.26305978]
[1721122595686,6.4259,155.62,155.57,17.69065978]
[1721122595911,1.2849735,155.62,155.57,11.26305978]
[1721122596093,6.4259,155.62,155.58,1.28534677]
[1721122596289,3.3552083,155.63,155.58,7.71284677]
[1721122597098,9.7808083,155.63,155.62,4.66915978]
[1721122597988,6.4261,155.62,155.57,6.5939]
[1721122598606,6.4261,155.62,155.57,13.0216]
[1721122598805,6.4261,155.62,155.57,6.5939]
[1721122599317,47.9307083,155.63,155.58,1.28529812]
[1721122599710,41.5052083,155.63,155.58,1.28529812]
[1721122599905,41.5052083,155.63,155.59,6.4271]
[1721122600913,2.0702348,155.63,155.6,6.4266]
[1721122601429,2.0702348,155.63,155.61,6.4262]
[1721122601629,2.0702348,155.63,155.62,6.4259]
[1721122602930,2.0702348,155.63,155.61,22.4914]
[1721122604220,2.0702348,155.63,155.62,6.4259]
[1721122610633,2.0702348,155.63,155.62,6.5959]
[1721122610931,2.0702348,155.63,155.62,6.7659]
[1721122612338,2.0702348,155.63,155.62,6.5959]
[1721122612924,2.0702348,155.63,155.62,6.4259]
[1721122617226,2.0702348,155.63,155.62,7.66845113]
[1721122617527,2.0702348,155.63,155.62,6.7659]
[1721122618420,2.0702348,155.63,155.62,13.0324]
[1721122620618,2.0702348,155.63,155.62,33.68702914]
[1721122621003,0.8439736,155.67,155.62,33.68702914]
[1721122621004,0.8439736,155.67,155.66,22.4848]
[1721122621208,0.8439736,155.67,155.66,22.8248]
[1721122621449,0.8439736,155.67,155.66,23.78117885]
[1721122621739,0.8439736,155.67,155.66,22.8248]
[1721122624625,0.8439736,155.67,155.66,27.49270505]
[1721122626331,0.8439736,155.67,155.66,22.8248]
[1721122627137,0.8439736,155.67,155.66,24.10881754]
[1721122627641,0.8439736,155.67,155.66,58.667]
[1721122627835,7.36e-05,155.67,155.66,66.48801754]
[1721122628143,7.36e-05,155.67,155.66,65.204]
[1721122629546,7.36e-05,155.67,155.66,66.46567658]
[1721122629735,54.2888,155.79,155.73,16.0528]
[1721122629931,54.2888,155.79,155.74,1.28398013]
[1721122630439,54.2888,155.79,155.76,6.4199]
[1721122630615,1.2849735,155.81,155.77,6.4197]
[1721122630822,7.7029735,155.81,155.76,6.42]
[1721122631440,6.4184,155.8,155.75,22.4708]
[1721122631643,7.7030735,155.81,155.76,6.42]
[1721122631851,6.4184,155.8,155.75,22.4708]
[1721122632019,7.7038735,155.79,155.75,16.0504]
[1721122632219,39.4349735,155.79,155.72,16.0542]
[1721122632719,49.4349735,155.79,155.72,16.0542]
[1721122632934,6.4197,155.77,155.72,22.4759]
[1721122633134,45.8541735,155.79,155.72,16.0542]
[1721122633345,45.8538735,155.79,155.74,6.4209]
[1721122633554,6.4193,155.78,155.73,6.4212]
[1721122633718,7.7046735,155.77,155.72,22.4759]
[1721122633913,1.2849735,155.76,155.72,22.4759]
[1721122634736,45.8550735,155.76,155.72,16.0542]
[1721122634945,1.2849735,155.75,155.72,22.4759]
[1721122635442,39.4349735,155.76,155.72,16.0542]
[1721122635749,38.15,155.73,155.68,16.0577]
[1721122635923,7.7069735,155.72,155.66,6.424]
[1721122636248,7.7069735,155.72,155.67,6.4237]
[1721122636543,1.2849735,155.72,155.68,6.4234]
[1721122636745,7.7067735,155.72,155.67,16.0588]
[1721122637248,6.4221,155.71,155.67,16.0588]
[1721122637471,7.7075735,155.7,155.65,6.4246]
[1721122637693,1.2849735,155.7,155.64,16.0624]
[1721122637861,1.2849735,155.71,155.65,0.5731872]
[1721122638055,1.2849735,155.72,155.64,16.0624]
[1721122638375,38.15,155.7,155.64,16.0624]
[1721122638576,1.2849735,155.69,155.64,16.0624]
[1721122639088,22.6875,155.68,155.63,6.4253]
[1721122639384,1.2849735,155.67,155.63,6.4253]
[1721122639754,1.2849735,155.67,155.61,16.0656]
[1721122639988,6.4246,155.66,155.61,16.0656]
[1721122640161,1.2849735,155.65,155.61,16.0656]
[1721122640678,1.2849735,155.65,155.58,6.4273]
[1721122640679,6.4255,155.63,155.58,6.4273]
[1721122640852,1.2849735,155.62,155.57,16.0693]
[1721122641406,1.2849735,155.62,155.58,6.4275]
[1721122641578,38.15,155.64,155.59,6.427]
[1721122641579,1.2849735,155.63,155.59,6.427]
[1721122641779,1.2849735,155.63,155.57,16.0693]
[1721122641780,1.2849735,155.63,155.6,6.4266]
[1721122642074,7.7104735,155.63,155.59,6.4271]
[1721122642311,6.426,155.62,155.57,22.4972]
[1721122642600,1.2849735,155.61,155.58,6.4275]
[1721122642970,44.5751,155.64,155.59,6.427]
[1721122643268,1.2849735,155.64,155.6,6.4267]
[1721122643471,1.2849735,155.66,155.59,16.0671]
[1721122643672,1.2849735,155.66,155.61,6.4259]
[1721122643673,14.43365852,155.66,155.61,6.4259]
[1721122643977,7.7095735,155.66,155.61,6.4259]
[1721122644374,39.4349735,155.67,155.61,16.065]
[1721122645174,39.4349735,155.67,155.63,6.4254]
[1721122645880,1.2849735,155.67,155.64,6.425]
[1721122646081,1.2849735,155.68,155.63,16.063]
[1721122646280,1.2849735,155.69,155.65,16.061]
[1721122646585,16.214,155.72,155.66,0.36022891]
[1721122646894,16.214,155.72,155.65,22.4853]
[1721122646895,1.2849735,155.71,155.65,22.4853]
[1721122647587,6.4226,155.7,155.65,22.4853]
[1721122647786,7.7080735,155.69,155.65,16.061]
[1721122648087,1.2849735,155.69,155.65,16.061]
[1721122648290,1.2849735,155.69,155.63,6.4254]
[1721122648486,6.4235,155.68,155.63,6.4254]
[1721122648885,7.7091735,155.67,155.62,6.4258]
[1721122649209,7.7082735,155.69,155.63,16.063]
[1721122649408,1.2849735,155.69,155.65,6.4243]
[1721122649774,7.7079735,155.69,155.64,6.425]
[1721122649972,7.7079735,155.69,155.63,16.063]
[1721122649973,6.4235,155.68,155.63,22.4884]
[1721122650272,1.2849735,155.67,155.64,6.425]
[1721122650475,1.2849735,155.68,155.64,6.425]
[1721122650874,1.2849735,155.68,155.65,6.4246]
[1721122652008,1.2849735,155.68,155.63,16.063]
[1721122652009,45.8571735,155.71,155.66,6.4241]
[1721122652182,7.7076735,155.7,155.65,6.4245]
[1721122652584,1.2849735,155.7,155.66,6.4241]
[1721122653111,39.4349735,155.71,155.65,16.0609]
[1721122653480,17.4989735,155.72,155.67,16.0587]
[1721122653691,17.4989735,155.72,155.68,1.04732668]
[1721122654088,23.9207735,155.72,155.68,7.47062668]
[1721122654308,44.4057,155.74,155.7,6.4225]
[1721122654309,39.4349735,155.74,155.7,6.4225]
[1721122654890,6.4213,155.73,155.69,16.0568]
[1721122655279,6.4213,155.73,155.68,6.4233]
[1721122655280,6.4218,155.72,155.68,6.4233]
[1721122655489,6.4218,155.72,155.67,6.4237]
[1721122655694,7.7071735,155.71,155.67,6.4237]
[1721122655897,39.4349735,155.71,155.64,0.17]
[1721122656112,39.4349735,155.71,155.66,6.4241]
[1721122656417,39.4349735,155.71,155.65,22.4855]
[1721122656707,45.8572735,155.71,155.66,6.4242]
[1721122656919,6.4228,155.7,155.65,16.061]
[1721122657212,6.4228,155.7,155.66,6.4241]
[1721122657213,1.2849735,155.7,155.66,6.4241]
[1721122658012,7.7075735,155.7,155.65,22.4856]
[1721122658390,1.2849735,155.7,155.65,16.061]
[1721122659000,1.2849735,155.7,155.68,6.4233]
[1721122659315,1.2849735,155.7,155.67,22.4826]
[1721122659613,54.87090532,155.74,155.68,0.85562]
[1721122659614,1.2849735,155.73,155.68,0.85562]
[1721122659918,1.2849735,155.73,155.69,6.4229]
[1721122660712,1.2849735,155.73,155.7,6.4224]
[1721122660915,16.3842,155.76,155.69,16.057]
[1721122661121,17.6691735,155.76,155.72,6.4214]
[1721122661289,17.6691735,155.76,155.72,22.4757]
[1721122661489,24.0893735,155.76,155.72,16.0543]
[1721122661698,1.2849735,155.76,155.72,22.476]
[1721122661993,1.2849735,155.76,155.73,6.4213]
[1721122662195,45.8547735,155.77,155.73,6.4213]
[1721122662405,1.2849735,155.77,155.73,6.4213]
[1721122662792,1.2849735,155.77,155.72,22.476]
[1721122663913,7.7046735,155.77,155.72,22.476]
[1721122664101,1.2849735,155.77,155.73,6.4212]
[1721122664615,7.7046735,155.77,155.72,22.476]
[1721122665322,7.7046735,155.77,155.73,6.4213]
[1721122665493,7.7046735,155.77,155.72,16.0543]
[1721122665494,6.4202,155.76,155.72,16.0543]
[1721122666217,7.7047735,155.77,155.72,22.476]
[1721122666897,7.7047735,155.77,155.73,6.4212]
[1721122667233,7.7047735,155.77,155.72,22.4759]
[1721122668308,7.7047735,155.77,155.73,6.4212]
[1721122668621,1.2849735,155.77,155.73,6.4212]
[1721122669714,1.2849735,155.77,155.74,6.4209]
[1721122670103,6.4193,155.78,155.74,6.4209]
[1721122670104,7.7038735,155.79,155.74,6.4209]
[1721122670428,7.7038735,155.79,155.75,6.4205]
[1721122671100,1.2849735,155.79,155.75,6.4205]
[1721122671702,1.2849735,155.8,155.76,6.42]
[1721122671907,7.7030735,155.81,155.76,6.42]
[1721122672719,6.4185,155.8,155.75,6.4204]
[1721122673025,6.4189,155.79,155.75,6.4204]
[1721122673234,7.7043735,155.78,155.74,22.4725]
[1721122673405,7.7043735,155.78,155.71,4.66605188]
[1721122673406,6.4198,155.77,155.71,20.72115188]
[1721122673831,6.4198,155.77,155.72,6.4216]
[1721122674325,6.4202,155.76,155.71,27.14315188]
[1721122674528,1.2849735,155.75,155.71,27.14315188]
[1721122674919,1.2849735,155.75,155.71,4.66605188]
[1721122675305,39.4349735,155.75,155.71,4.66605188]
[1721122676014,1.2849735,155.75,155.72,6.4214]
[1721122676214,1.2849735,155.75,155.71,27.14295188]
[1721122676418,1.2849735,155.75,155.72,6.4217]
[1721122676618,1.2849735,155.77,155.74,6.4209]
[1721122676939,1.2849735,155.76,155.72,6.4213]
[1721122677124,6.4202,155.76,155.71,27.14295188]
[1721122677434,6.4208,155.75,155.71,20.72085188]
[1721122678014,6.4202,155.76,155.71,27.14295188]
[1721122678330,7.7046735,155.77,155.72,6.4214]
[1721122678507,1.2849735,155.76,155.72,6.4214]
[1721122679331,7.7051735,155.76,155.72,6.4214]
[1721122679524,7.7051735,155.76,155.71,27.14295188]
[1721122679712,6.4213,155.74,155.71,4.66605188]
[1721122679921,1.2849735,155.73,155.71,4.66605188]
[1721122680329,7.7051735,155.76,155.72,6.4217]
[1721122680824,1.2849735,155.76,155.72,6.4217]
[1721122681416,1.2849735,155.76,155.73,6.4212]
[1721122681731,1.2849735,155.76,155.72,0.91418969]
[1721122681732,38.15,155.78,155.74,6.4209]
[1721122681937,38.15,155.78,155.73,6.4212]
[1721122682128,1.2849735,155.77,155.72,16.0537]
[1721122682355,1.2849735,155.76,155.71,4.66605188]
[1721122682643,1.2849735,155.76,155.72,6.4216]
[1721122683134,1.2849735,155.77,155.74,6.4209]
[1721122683328,29.38900157,155.8,155.76,6.42]
[1721122683532,7.7039735,155.79,155.75,6.4205]
[1721122683728,7.7039735,155.79,155.73,16.0525]
[1721122683729,6.4194,155.78,155.73,16.0525]
[1721122684116,6.4194,155.78,155.73,22.4735]
[1721122684437,6.4194,155.78,155.74,6.4208]
[1721122685143,7.7046735,155.77,155.73,22.4737]
[1721122685507,6.4194,155.78,155.73,22.4737]
[1721122686036,1.2849735,155.77,155.73,22.4737]
[1721122686744,6.4194,155.78,155.74,6.4208]
[1721122686930,1.2849735,155.8,155.75,6.4204]
[1721122687134,1.2849735,155.79,155.75,6.4204]
[1721122687365,7.7039735,155.79,155.74,6.4208]
[1721122687835,6.4193,155.78,155.74,6.4208]
[1721122688246,1.2849735,155.77,155.73,6.4213]
[1721122688422,6.4196,155.78,155.73,6.4213]
[1721122688623,1.2849735,155.77,155.73,6.4213]
[1721122688826,6.4196,155.78,155.74,6.4207]
[1721122689029,6.419,155.79,155.74,6.4207]
[1721122689226,7.7039735,155.79,155.75,6.4205]
[1721122690039,7.7039735,155.79,155.74,6.4208]
[1721122690242,6.419,155.79,155.75,6.4204]
[1721122690946,7.7034735,155.8,155.75,6.4204]
[1721122691125,1.2849735,155.79,155.75,6.4204]
[1721122691645,7.7039735,155.79,155.74,22.4728]
[1721122692239,6.419,155.79,155.74,22.4728]
[1721122692921,6.4193,155.78,155.74,22.4728]
[1721122693336,10.0,155.8,155.73,6.4212]
[1721122693625,10.17,155.8,155.73,6.4212]
[1721122693829,6.4198,155.77,155.73,6.4212]
[1721122694949,7.7050735,155.76,155.72,6.4216]
[1721122695542,6.4196,155.78,155.74,6.4209]
[1721122696245,19.03,155.76,155.74,6.4209]
[1721122696440,6.4189,155.79,155.75,6.4205]
[1721122696755,19.03,155.77,155.75,16.0509]
[1721122696956,19.03,155.77,155.75,22.4713]
[1721122697125,19.03,155.76,155.75,22.4713]
[1721122697446,19.03,155.76,155.75,16.0509]
[1721122697827,19.03,155.76,155.73,6.4209]
[1721122698040,19.03,155.75,155.73,6.4209]
[1721122698435,19.03,155.75,155.74,6.4209]
[1721122698826,1.2849735,155.81,155.75,6.4205]
[1721122698827,6.419,155.79,155.75,6.4205]
[1721122699137,19.03,155.76,155.75,6.4205]
[1721122699827,19.03,155.76,155.74,16.0518]
[1721122700043,19.03,155.75,155.74,16.0518]
[1721122701057,19.03,155.75,155.74,22.4727]
[1721122701843,19.03,155.75,155.74,16.0518]
[1721122702028,1.2849735,155.78,155.74,22.4727]
[1721122702231,1.2849735,155.78,155.75,6.4205]
[1721122702454,19.03,155.76,155.75,6.4205]
[1721122703352,19.03,155.76,155.74,22.4726]
[1721122703533,19.03,155.75,155.74,16.0518]
[1721122704049,1.2849735,155.79,155.75,6.4202]